fUST/lending_fUST_20240911
["ID","MTS","AMOUNT","RATE_DAILY","PERIOD"]
[337751522,1726045840231,-644.53128183,0.0003,5]
[337751523,1726045840241,-166.0,0.0003,2]
[337751524,1726045840251,-500.0,0.00030867,2]
[337751525,1726045840263,-500.0,0.00030867,2]
[337751526,1726045840274,-500.0,0.00030867,2]
[337751527,1726045840283,-500.0,0.00030867,2]
[337751528,1726045840293,-176.94596296,0.00030867,2]
[337751529,1726045840303,-500.0,0.00030867,2]
[337751530,1726045840312,-300.0,0.00030867,2]
[337751531,1726045840323,-647.85,0.00030868,3]
[337751532,1726045840332,-500.0,0.00030877,14]
[337751533,1726045840342,-500.0,0.00030877,14]
[337751534,1726045840352,-585.49,0.00030877,14]
[337751535,1726045840362,-500.0,0.00030877,14]
[337751536,1726045840372,-776.97,0.00030877,14]
[337751537,1726045840382,-1328.76,0.00030877,14]
[337751538,1726045840392,-500.0,0.00030877,14]
[337751539,1726045840402,-1259.34,0.00030877,14]
[337751540,1726045840411,-500.0,0.00030877,14]
[337751541,1726045840421,-1092.62,0.00030877,14]
[337751542,1726045840431,-1297.11,0.00030877,14]
[337751543,1726045840440,-1587.58,0.00030877,14]
[337751544,1726045840450,-1256.46,0.00030877,14]
[337751545,1726045840460,-500.0,0.00030877,14]
[337751546,1726045840469,-500.0,0.00030877,14]
[337751547,1726045840480,-500.0,0.00030877,14]
[337751548,1726045840490,-927.79,0.00030877,14]
[337751549,1726045840500,-500.0,0.00030877,14]
[337751550,1726045840510,-610.29,0.00030877,14]
[337751551,1726045840520,-1969.85,0.00030877,14]
[337751552,1726045840531,-500.0,0.00030877,14]
[337751553,1726045840541,-500.0,0.00030877,14]
[337751554,1726045840553,-500.0,0.00030877,14]
[337751555,1726045840563,-2087.49,0.00030878,14]
[337751556,1726045840574,-2146.92,0.00030878,14]
[337751557,1726045840584,-500.0,0.00030878,14]
[337751558,1726045840594,-501.35426144,0.00030878,14]
[337751559,1726045840604,-7757.54,0.00030878,14]
[337751560,1726045840615,-2366.25,0.00030878,14]
[337751561,1726045840625,-1493.19,0.00030878,14]
[337751562,1726045840637,-500.0,0.00030878,14]
[337751563,1726045840646,-500.0,0.00030878,14]
[337751564,1726045840656,-500.0,0.00030878,14]
[337751565,1726045840668,-704.31,0.00030878,14]
[337751566,1726045840678,-500.0,0.00030878,14]
[337751567,1726045840687,-500.0,0.00030878,14]
[337751568,1726045840699,-500.0,0.00030878,14]
[337751569,1726045840709,-501.1117876,0.00030878,14]
[337751570,1726045840719,-500.0,0.00030878,14]
[337751571,1726045840730,-500.0,0.00030878,14]
[337751572,1726045840741,-501.32799562,0.00030878,14]
[337751573,1726045840752,-500.0,0.00030878,14]
[337751574,1726045840762,-500.0,0.00030878,14]
[337751575,1726045840772,-500.0,0.00030878,14]
[337751576,1726045840782,-500.0,0.00030878,14]
[337751577,1726045840792,-1426.01,0.00030878,14]
[337751578,1726045840802,-1794.45,0.00030878,14]
[337751579,1726045840812,-939.46,0.00030878,14]
[337751580,1726045840822,-500.0,0.00030878,14]
[337751581,1726045840831,-500.0,0.00030878,14]
[337751582,1726045840841,-500.0,0.00030878,14]
[337751583,1726045840852,-699.64,0.00030878,14]
[337751584,1726045840861,-1021.14,0.00030878,14]
[337751585,1726045840872,-809.62,0.00030878,14]
[337751586,1726045840883,-500.0,0.00030878,14]
[337751587,1726045840893,-805.28,0.00030878,14]
[337751588,1726045840903,-500.0,0.00030878,14]
[337751589,1726045840913,-2069.94,0.00030878,14]
[337751590,1726045840924,-500.0,0.00030878,14]
[337751591,1726045840935,-500.0,0.00030878,14]
[337751592,1726045840945,-500.0,0.00030878,14]
[337751593,1726045840955,-500.0,0.00030878,14]
[337751594,1726045840965,-4973.48,0.00030878,14]
[337751595,1726045840976,-500.0,0.00030878,14]
[337751596,1726045840986,-500.0,0.00030878,14]
[337751597,1726045840996,-500.0,0.00030878,14]
[337751598,1726045841006,-500.0,0.00030878,14]
[337751599,1726045841016,-500.0,0.00030878,14]
[337751600,1726045841025,-500.0,0.00030878,14]
[337751601,1726045841035,-500.0,0.00030878,14]
[337751602,1726045841045,-500.0,0.00030878,14]
[337751603,1726045841055,-152.11913654,0.00030962,2]
[337751604,1726045841067,-43864.65990003,0.00031,120]
[337751605,1726045841076,-167.0575478,0.00031131,2]
[337751606,1726045841087,-500.0,0.00031131,2]
[337751607,1726045841098,-500.0,0.00031131,2]
[337751608,1726045841109,-281.68022937,0.00031131,2]
[337751609,1726045841120,-272.86334055,0.00031131,2]
[337751610,1726045841131,-6346.677277,0.00031132,4]
[337751691,1726045912599,904.04,0.00028,120]
[337751955,1726047032017,-193.237837,0.00025084,2]
[337751957,1726047032027,-435.270103,0.00025248,2]
[337751959,1726047032038,-166.961808,0.00025397,2]
[337751962,1726047032049,-692.7041937,0.00025454,2]
[337751964,1726047032060,-24900.0,0.00025814,2]
[337751966,1726047032071,-200.0,0.00026159,2]
[337751967,1726047032080,-200.0,0.00026231,2]
[337751968,1726047032089,-200.0,0.00026303,2]
[337751969,1726047032098,-200.0,0.00026374,2]
[337751970,1726047032108,-200.0,0.00026446,2]
[337751972,1726047032118,-200.0,0.00026518,2]
[337751973,1726047032129,-200.0,0.0002659,2]
[337751974,1726047032141,-200.0,0.00026661,2]
[337751975,1726047032153,-1330.82760923,0.00026705,2]
[337751976,1726047032164,-200.0,0.00026733,2]
[337751977,1726047032174,-4012.52127693,0.00026792,2]
[337751978,1726047032184,-200.0,0.00026805,2]
[337751979,1726047032195,-200.0,0.00026877,2]
[337751980,1726047032206,-162.281074,0.00026892,2]
[337751981,1726047032218,-162.281074,0.00026907,2]
[337751982,1726047032232,-162.281074,0.00026922,2]
[337751983,1726047032243,-162.281074,0.00026936,2]
[337751984,1726047032253,-200.0,0.00026948,2]
[337751985,1726047032264,-162.281074,0.00026951,2]
[337751986,1726047032275,-162.281074,0.00026966,2]
[337751987,1726047032285,-162.281074,0.00026981,2]
[337751988,1726047032296,-162.281074,0.00026996,2]
[337751989,1726047032306,-162.281074,0.00027011,2]
[337751990,1726047032317,-200.0,0.0002702,2]
[337751991,1726047032326,-162.281074,0.00027026,2]
[337751992,1726047032336,-200.0,0.00027092,2]
[337751993,1726047032346,-200.0,0.00027164,2]
[337751994,1726047032357,-200.0,0.00027235,2]
[337751995,1726047032368,-200.0,0.00027307,2]
[337751996,1726047032379,-465.50510289,0.0002734,2]
[337751997,1726047032389,-200.0,0.00027379,2]
[337751998,1726047032399,-200.0,0.00027451,2]
[337751999,1726047032411,-200.0,0.00027523,2]
[337752000,1726047032628,-324.562148,0.00028134,2]
[337752001,1726047032642,-324.562148,0.00028141,2]
[337752002,1726047032654,-324.562148,0.00028148,2]
[337752003,1726047032665,-324.562148,0.00028156,2]
[337752004,1726047032674,-324.562148,0.00028163,2]
[337752005,1726047032685,-324.562148,0.00028171,2]
[337752006,1726047032696,-324.562148,0.00028178,2]
[337752007,1726047032708,-324.562148,0.00028185,2]
[337752008,1726047032719,-324.562148,0.00028193,2]
[337752009,1726047032731,-500.0,0.00028199,14]
[337752010,1726047032743,-500.0,0.00028199,14]
[337752011,1726047032755,-585.49,0.00028199,14]
[337752012,1726047032765,-776.97,0.00028199,14]
[337752013,1726047032775,-1339.42,0.00028199,14]
[337752014,1726047032785,-500.0,0.00028199,14]
[337752015,1726047032795,-1092.62,0.00028199,14]
[337752016,1726047032805,-1256.46,0.00028199,14]
[337752017,1726047032816,-500.0,0.00028199,14]
[337752018,1726047032827,-927.79,0.00028199,14]
[337752019,1726047032839,-601.29008185,0.00028199,2]
[337752020,1726047032849,-500.0,0.00028199,14]
[337752021,1726047032859,-500.0,0.00028199,14]
[337752022,1726047032869,-610.29,0.00028199,14]
[337752023,1726047032879,-500.0,0.00028199,14]
[337752024,1726047032889,-1136.58,0.00028199,14]
[337752025,1726047032899,-500.0,0.00028199,14]
[337752026,1726047032909,-1344.07,0.00028199,2]
[337752027,1726047032918,-324.562148,0.000282,2]
[337752028,1726047032929,-324.562148,0.00028208,2]
[337752029,1726047032938,-324.562148,0.00028215,2]
[337752030,1726047032949,-324.562148,0.00028222,2]
[337752031,1726047032959,-324.562148,0.0002823,2]
[337752032,1726047032969,-1459.62,0.00028236,14]
[337752033,1726047032979,-500.0,0.00028236,14]
[337752034,1726047032995,-1259.34,0.00028236,14]
[337752035,1726047033005,-1297.11,0.00028236,14]
[337752036,1726047033017,-1587.58,0.00028236,14]
[337752037,1726047033028,-500.0,0.00028236,14]
[337752038,1726047033038,-500.0,0.00028236,14]
[337752039,1726047033048,-500.0,0.00028236,14]
[337752040,1726047033059,-500.0,0.00028236,14]
[337752041,1726047033069,-324.562148,0.00028237,2]
[337752042,1726047033079,-324.562148,0.00028245,2]
[337752043,1726047033089,-324.562148,0.00028252,2]
[337752044,1726047033099,-324.562148,0.00028259,2]
[337752045,1726047033109,-324.562148,0.00028267,2]
[337752046,1726047033118,-324.562148,0.00028274,2]
[337752047,1726047033128,-500.0,0.00028473,14]
[337752048,1726047033138,-500.0,0.00028473,14]
[337752049,1726047033147,-585.49,0.00028473,14]
[337752050,1726047033158,-776.97,0.00028473,14]
[337752051,1726047033168,-1339.42,0.00028473,14]
[337752052,1726047033177,-500.0,0.00028473,14]
[337752053,1726047033186,-1092.62,0.00028473,14]
[337752054,1726047033197,-1256.46,0.00028473,14]
[337752055,1726047033206,-500.0,0.00028473,14]
[337752056,1726047033218,-927.79,0.00028473,14]
[337752057,1726047033231,-500.0,0.00028473,14]
[337752058,1726047033245,-500.0,0.00028473,14]
[337752059,1726047033254,-610.29,0.00028473,14]
[337752060,1726047033264,-500.0,0.00028473,14]
[337752061,1726047033274,-1136.58,0.00028473,14]
[337752062,1726047033283,-500.0,0.00028473,14]
[337752063,1726047033294,-1459.62,0.0002851,14]
[337752064,1726047033304,-500.0,0.0002851,14]
[337752065,1726047033313,-1259.34,0.0002851,14]
[337752066,1726047033324,-1297.11,0.0002851,14]
[337752067,1726047033334,-1587.58,0.0002851,14]
[337752068,1726047033345,-500.0,0.0002851,14]
[337752069,1726047033356,-500.0,0.0002851,14]
[337752070,1726047033367,-209.03169819,0.0002851,14]
[337752107,1726047038109,-500.0,0.00028199,14]
[337752110,1726047038121,-500.0,0.00028199,14]
[337752112,1726047038131,-1344.07,0.00028473,2]
[337752114,1726047038140,-500.0,0.00028473,14]
[337752115,1726047038151,-290.96830181,0.0002851,14]
[337752117,1726047038161,-1330.82760917,0.00028528,2]
[337752119,1726047038170,-465.02525514,0.00028707,2]
[337752121,1726047038179,-220.60417015,0.00028738,5]
[337752123,1726047038188,-500.0,0.00028738,5]
[337752125,1726047038198,-500.0,0.00028747,14]
[337752127,1726047038208,-506.58533735,0.00028747,14]
[337752129,1726047038218,-585.49,0.00028747,14]
[337752131,1726047038228,-776.97,0.00028747,14]
[337752133,1726047038238,-457.71422638,0.00028747,14]
[337752134,1726047038250,-881.70577362,0.00028747,14]
[337752136,1726047038259,-22.33422638,0.00028747,14]
[337752154,1726047040125,-404.20623893,0.00028473,14]
[337752155,1726047040136,-477.66577362,0.00028747,14]
[337752156,1726047040147,-1092.62,0.00028747,14]
[337752157,1726047040158,-1256.46,0.00028747,14]
[337752158,1726047040169,-500.0,0.00028747,14]
[337752159,1726047040180,-927.79,0.00028747,14]
[337752160,1726047040190,-500.0,0.00028747,14]
[337752161,1726047040200,-500.0,0.00028747,14]
[337752162,1726047040209,-610.29,0.00028747,14]
[337752163,1726047040219,-500.0,0.00028747,14]
[337752164,1726047040228,-1136.58,0.00028747,14]
[337752165,1726047040239,-500.0,0.00028747,14]
[337752166,1726047040248,-1344.07,0.00028747,2]
[337752167,1726047040258,-500.0,0.00028747,14]
[337752168,1726047040268,-516.46,0.0002876,3]
[337752169,1726047040277,-1459.62,0.00028784,14]
[337752170,1726047040286,-500.0,0.00028784,14]
[337752171,1726047040296,-1259.34,0.00028784,14]
[337752172,1726047040306,-1297.11,0.00028784,14]
[337752173,1726047040316,-1587.58,0.00028784,14]
[337752174,1726047040325,-231.22388924,0.00028784,14]
[337752175,1726047040335,-500.0,0.00028784,14]
[337752176,1726047040345,-515.61281616,0.00028784,14]
[337752177,1726047040354,-44332.23166275,0.000288,10]
[337752178,1726047040364,-166.961808,0.00028859,2]
[337752179,1726047040374,-500.0,0.00029021,14]
[337752180,1726047040385,-585.49,0.00029021,14]
[337752181,1726047040397,-776.97,0.00029021,14]
[337752182,1726047040409,-1339.42,0.00029021,14]
[337752183,1726047040419,-500.0,0.00029021,14]
[337752184,1726047040429,-1092.62,0.00029021,14]
[337752185,1726047040440,-1256.46,0.00029021,14]
[337752186,1726047040450,-155.87612797,0.00029021,14]
[337752187,1726047040459,-927.79,0.00029021,14]
[337752188,1726047040468,-500.0,0.00029021,14]
[337752189,1726047040478,-544.1736316,0.00029021,14]
[337752190,1726047040487,-610.29,0.00029021,14]
[337752191,1726047040497,-500.0,0.00029021,14]
[337752192,1726047040506,-1136.58,0.00029021,14]
[337752193,1726047040515,-162.12386814,0.00029021,14]
[337752194,1726047040524,-1344.07,0.00029021,2]
[337752195,1726047040534,-500.0,0.00029021,14]
[337752196,1726047040543,-1459.62,0.00029058,14]
[337752197,1726047040551,-500.0,0.00029058,14]
[337752198,1726047040560,-1259.34,0.00029058,14]
[337752199,1726047040570,-1297.11,0.00029058,14]
[337752200,1726047040580,-1587.58,0.00029058,14]
[337752201,1726047040589,-500.0,0.00029058,14]
[337752202,1726047040598,-25425.67,0.00029285,3]
[337752203,1726047040608,-167.0575478,0.00029294,2]
[337752204,1726047040617,-281.68022937,0.00029294,2]
[337752205,1726047040627,-500.0,0.00029294,2]
[337752206,1726047040641,-500.0,0.00029294,2]
[337752207,1726047040651,-272.86334055,0.00029294,2]
[337752208,1726047040662,-500.0,0.00029295,14]
[337752209,1726047040674,-585.49,0.00029295,14]
[337752210,1726047040685,-776.97,0.00029295,14]
[337752211,1726047040696,-1339.42,0.00029295,14]
[337752212,1726047040707,-503.73542949,0.00029295,14]
[337752213,1726047040718,-1092.62,0.00029295,14]
[337752214,1726047040730,-1256.46,0.00029295,14]
[337752215,1726047040741,-927.79,0.00029295,14]
[337752216,1726047040751,-500.0,0.00029295,14]
[337752217,1726047040761,-610.29,0.00029295,14]
[337752218,1726047040771,-474.2002998,0.00029295,14]
[337752219,1726047040780,-1136.58,0.00029295,14]
[337752220,1726047040790,-1344.07,0.00029295,2]
[337752221,1726047040802,-549.69332542,0.00029295,14]
[337752222,1726047040813,-1459.62,0.00029332,14]
[337752223,1726047040823,-510.84141957,0.00029332,14]
[337752224,1726047040834,-1259.34,0.00029332,14]
[337752225,1726047040844,-1297.11,0.00029332,14]
[337752226,1726047040855,-1587.58,0.00029332,14]
[337752227,1726047040865,-500.0,0.00029332,14]
[337752228,1726047040875,-606.94983052,0.00029569,14]
[337752229,1726047040886,-585.49,0.00029569,14]
[337752230,1726047040897,-776.97,0.00029569,14]
[337752231,1726047040907,-1339.42,0.00029569,14]
[337752232,1726047040916,-1092.62,0.00029569,14]
[337752233,1726047040926,-1256.46,0.00029569,14]
[337752234,1726047040936,-927.79,0.00029569,14]
[337752235,1726047040948,-500.0,0.00029569,14]
[337752236,1726047040958,-610.29,0.00029569,14]
[337752237,1726047040968,-1136.58,0.00029569,14]
[337752238,1726047040978,-1344.07,0.00029569,2]
[337752239,1726047040990,-1459.62,0.00029606,14]
[337752240,1726047041000,-1259.34,0.00029606,14]
[337752241,1726047041010,-1297.11,0.00029606,14]
[337752242,1726047041021,-1587.58,0.00029606,14]
[337752243,1726047041030,-500.0,0.00029606,14]
[337752244,1726047041039,-585.49,0.00029843,14]
[337752245,1726047041048,-776.97,0.00029843,14]
[337752246,1726047041057,-1339.42,0.00029843,14]
[337752247,1726047041068,-1092.62,0.00029843,14]
[337752248,1726047041079,-1256.46,0.00029843,14]
[337752249,1726047041089,-927.79,0.00029843,14]
[337752250,1726047041100,-500.0,0.00029843,14]
[337752251,1726047041110,-610.29,0.00029843,14]
[337752252,1726047041121,-1136.58,0.00029843,14]
[337752253,1726047041130,-1344.07,0.00029843,2]
[337752254,1726047041140,-1459.62,0.0002988,14]
[337752255,1726047041151,-1259.34,0.0002988,14]
[337752256,1726047041161,-1297.11,0.0002988,14]
[337752257,1726047041170,-1587.58,0.0002988,14]
[337752258,1726047041181,-500.0,0.0002988,14]
[337752259,1726047041192,-2433.80438478,0.00029898,2]
[337752260,1726047041202,-13698.12592064,0.00029968,4]
[337752261,1726047041242,-679.40527399,0.00029968,4]
[337752322,1726047046159,-500.0,0.00028199,14]
[337752323,1726047046171,-500.0,0.00028199,14]
[337752324,1726047046182,-500.0,0.00028199,14]
[337752325,1726047046194,-500.0,0.00028236,14]
[337752326,1726047046203,-500.0,0.00028472,2]
[337752327,1726047046213,-500.0,0.00028472,2]
[337752328,1726047046223,-500.0,0.00028472,2]
[337752329,1726047046236,-176.94596296,0.00028472,2]
[337752330,1726047046245,-500.0,0.00028472,2]
[337752331,1726047046255,-500.0,0.00028472,2]
[337752332,1726047046264,-300.0,0.00028472,2]
[337752333,1726047046275,-500.0,0.00028473,14]
[337752334,1726047046286,-500.0,0.00028473,14]
[337752335,1726047046297,-500.0,0.00028473,14]
[337752336,1726047046307,-504.49817822,0.0002851,14]
[337752337,1726047046318,-500.0,0.00028747,14]
[337752338,1726047046330,-500.0,0.00028747,14]
[337752339,1726047046340,-500.0,0.00028747,14]
[337752340,1726047046351,-500.0,0.00029021,14]
[337752341,1726047046362,-500.0,0.00029021,14]
[337752342,1726047046372,-500.0,0.00029021,14]
[337752343,1726047046384,-500.0,0.00029295,14]
[337752344,1726047046394,-500.0,0.00029295,14]
[337752345,1726047046404,-500.0,0.00029295,14]
[337752346,1726047046414,-500.0,0.00029569,14]
[337752347,1726047046424,-500.0,0.00029569,14]
[337752348,1726047046434,-500.0,0.00029569,14]
[337752349,1726047046448,-500.0,0.00029843,14]
[337752350,1726047046459,-500.0,0.00029843,14]
[337752351,1726047046470,-500.0,0.00029843,14]
[337752352,1726047046480,-596.6,0.00029958,3]
[337752353,1726047046493,-146577.61897837,0.00029968,4]
[337752354,1726047046503,-502.6250753,0.00029973,5]
[337752355,1726047046513,-536.75740704,0.00029973,5]
[337752356,1726047046524,-500.0,0.00029973,3]
[337752357,1726047046535,-500.0,0.00029978,14]
[337752358,1726047046546,-2087.49,0.00029978,14]
[337752359,1726047046556,-500.0,0.00029978,14]
[337752360,1726047046566,-2146.92,0.00029978,14]
[337752361,1726047046578,-500.0,0.00029978,14]
[337752362,1726047046590,-501.35426144,0.00029978,14]
[337752363,1726047046601,-1493.19,0.00029978,14]
[337752364,1726047046610,-7757.54,0.00029978,14]
[337752365,1726047046621,-500.0,0.00029978,14]
[337752366,1726047046633,-2366.25,0.00029978,14]
[337752367,1726047046646,-500.0,0.00029978,14]
[337752368,1726047046657,-704.31,0.00029978,14]
[337752369,1726047046668,-500.0,0.00029978,14]
[337752370,1726047046677,-500.0,0.00029978,14]
[337752371,1726047046687,-500.0,0.00029978,14]
[337752372,1726047046696,-501.1117876,0.00029978,14]
[337752373,1726047046706,-500.0,0.00029978,14]
[337752374,1726047046716,-500.0,0.00029978,14]
[337752375,1726047046726,-500.0,0.00029978,14]
[337752376,1726047046739,-500.0,0.00029978,14]
[337752377,1726047046748,-939.46,0.00029978,14]
[337752378,1726047046758,-500.0,0.00029978,14]
[337752379,1726047046769,-501.32799562,0.00029978,14]
[337752380,1726047046780,-500.0,0.00029978,14]
[337752381,1726047046790,-500.0,0.00029978,14]
[337752382,1726047046800,-500.0,0.00029978,14]
[337752383,1726047046812,-1426.01,0.00029978,14]
[337752384,1726047046823,-1794.45,0.00029978,14]
[337752385,1726047046834,-699.64,0.00029978,14]
[337752386,1726047046844,-809.62,0.00029978,14]
[337752387,1726047046855,-500.0,0.00029978,14]
[337752388,1726047046865,-500.0,0.00029978,14]
[337752389,1726047046878,-500.0,0.00029978,14]
[337752390,1726047046888,-1021.14,0.00029978,14]
[337752391,1726047046899,-500.0,0.00029978,14]
[337752392,1726047046909,-500.0,0.00029978,14]
[337752393,1726047046918,-805.28,0.00029978,14]
[337752394,1726047046929,-151.0,0.00029978,7]
[337752395,1726047046939,-151.0,0.00029978,7]
[337752396,1726047046948,-2069.94,0.00029978,14]
[337752397,1726047046958,-500.0,0.00029978,14]
[337752398,1726047046968,-500.0,0.00029978,14]
[337752399,1726047046978,-500.0,0.00029978,14]
[337752400,1726047046989,-320.763894,0.00029978,7]
[337752401,1726047046999,-320.763894,0.00029978,7]
[337752402,1726047047009,-155.140206,0.00029978,7]
[337752403,1726047047019,-151.0,0.00029978,7]
[337752404,1726047047030,-320.763894,0.00029978,7]
[337752405,1726047047040,-151.0,0.00029978,7]
[337752406,1726047047051,-320.763894,0.00029978,7]
[337752407,1726047047062,-500.0,0.00029978,14]
[337752408,1726047047073,-500.0,0.00029978,14]
[337752409,1726047047084,-153.929687,0.00029978,7]
[337752410,1726047047096,-394.993226,0.00029978,7]
[337752411,1726047047105,-394.993226,0.00029978,7]
[337752412,1726047047116,-394.993226,0.00029978,7]
[337752413,1726047047127,-394.993226,0.00029978,7]
[337752414,1726047047136,-4973.48,0.00029978,14]
[337752415,1726047047145,-500.0,0.00029978,14]
[337752416,1726047047155,-255.057342,0.00029978,7]
[337752417,1726047047166,-255.057342,0.00029978,7]
[337752418,1726047047178,-255.057342,0.00029978,7]
[337752419,1726047047189,-255.057342,0.00029978,7]
[337752420,1726047047202,-151.0,0.00029978,7]
[337752421,1726047047213,-154.778277,0.00029978,7]
[337752422,1726047047225,-508.26650969,0.00029978,14]
[337752423,1726047047236,-500.0,0.00029978,14]
[337752424,1726047047246,-16793.72619775,0.00029978,4]
[337752436,1726047117496,500.0,0.00028,120]
[337752574,1726048240415,-183.519258,0.00023983,2]
[337752575,1726048240425,-250.0,0.00024389,2]
[337752576,1726048240434,-166.9618089,0.00024645,2]
[337752577,1726048240443,-793.938501,0.00024928,2]
[337752578,1726048240453,-212.5,0.00024978,2]
[337752579,1726048240464,-217.635051,0.00024983,2]
[337752580,1726048240474,-280.0,0.00025026,2]
[337752581,1726048240484,-212.5,0.00025046,2]
[337752582,1726048240496,-212.5,0.00025115,2]
[337752583,1726048240507,-212.5,0.00025183,2]
[337752584,1726048240519,-212.5,0.00025252,2]
[337752585,1726048240530,-24900.0,0.00025256,2]
[337752586,1726048240540,-212.5,0.0002532,2]
[337752587,1726048240552,-212.5,0.00025389,2]
[337752588,1726048240562,-212.5,0.00025457,2]
[337752589,1726048240573,-212.5,0.00025526,2]
[337752590,1726048240584,-212.5,0.00025594,2]
[337752591,1726048240596,-212.5,0.00025663,2]
[337752592,1726048240606,-212.5,0.00025731,2]
[337752593,1726048240617,-212.5,0.000258,2]
[337752594,1726048240628,-212.5,0.00025868,2]
[337752595,1726048240637,-212.5,0.00025937,2]
[337752596,1726048240647,-212.5,0.00026005,2]
[337752597,1726048240656,-212.5,0.00026074,2]
[337752598,1726048240666,-233.33635743,0.00026103,2]
[337752599,1726048240676,-212.5,0.00026142,2]
[337752600,1726048240686,-212.5,0.00026211,2]
[337752601,1726048240696,-212.5,0.00026279,2]
[337752602,1726048240705,-206.661745,0.00026717,2]
[337752603,1726048240715,-1170.0165528,0.00026784,2]
[337752604,1726048240724,-187.43848479,0.000279,2]
[337752605,1726048240734,-1000.0,0.00028,28]
[337752606,1726048240744,-2433.80438478,0.00028089,2]
[337752607,1726048240754,-500.0,0.00028117,14]
[337752608,1726048240764,-200.0,0.00028117,2]
[337752609,1726048240773,-500.0,0.00028117,14]
[337752610,1726048240782,-390.43,0.00028118,3]
[337752611,1726048240793,-25611.74846652,0.00028128,4]
[337752762,1726049438507,-6189.0415356,0.00026,2]
[337752785,1726049440574,-33810.9584644,0.00026,2]
[337752787,1726049440587,-217.635052,0.00026203,2]
[337752789,1726049440599,-1592.34247492,0.00026238,2]
[337752842,1726049443512,-23307.65752508,0.00026238,2]
[337752843,1726049443522,-159.375,0.00026386,2]
[337752844,1726049443532,-159.375,0.00026459,2]
[337752845,1726049443542,-159.375,0.00026531,2]
[337752846,1726049443552,-200.0,0.00026574,2]
[337752847,1726049443563,-159.375,0.00026604,2]
[337752848,1726049443573,-159.375,0.00026676,2]
[337752849,1726049443582,-68.75983895,0.00026748,2]
[337752860,1726049496849,500.0,0.00027397,120]
[337752861,1726049497101,328.53612764,0.00027671,120]
[337752863,1726049547669,5412.5912768,0.00013,10]
[337752864,1726049547697,2386.4087222,0.00013,10]
[337752922,1726050632679,-166.961808,0.00025217,2]
[337752924,1726050632689,-109.1410273,0.00025571,2]
[337753004,1726050640921,-108.4940247,0.00025571,2]
[337753005,1726050640931,-9611.6696093,0.00025653,2]
[337753006,1726050640943,-193.237837,0.00025718,2]
[337753007,1726050640953,-159.375,0.00025918,2]
[337753008,1726050640963,-159.375,0.00025989,2]
[337753009,1726050640972,-1302.93685885,0.00026,2]
[337753010,1726050640981,-159.375,0.0002606,2]
[337753011,1726050640991,-159.375,0.00026131,2]
[337753012,1726050641000,-233.33635743,0.00026202,2]
[337753013,1726050641010,-159.375,0.00026202,2]
[337753014,1726050641021,-152.11913654,0.0002627,2]
[337753015,1726050641031,-159.375,0.00026274,2]
[337753016,1726050641042,-187.43848479,0.000263,2]
[337753017,1726050641053,-159.375,0.00026345,2]
[337753018,1726050641063,-159.375,0.00026416,2]
[337753019,1726050641074,-159.375,0.00026487,2]
[337753020,1726050641085,-421.32773532,0.00026496,2]